bitfinex-derivatives/quotes_BNBF0:USTF0_20250511
["timestamp","ask_amount","ask_price","bid_price","bid_amount"]
[1746939136570,0.29961649,667.52,665.82,0.30038148]
[1746939136571,1.94388738,667.33,665.82,0.30038148]
[1746939136767,0.24432078,667.32,665.82,0.30038148]
[1746939137267,0.24432078,667.31,665.82,0.30038148]
[1746939137571,0.24432078,667.3,665.82,0.30038148]
[1746939137871,0.24432078,667.29,665.82,0.30038148]
[1746939138371,0.24432078,667.28,665.82,0.30038148]
[1746939138773,0.24432078,667.27,665.82,0.30038148]
[1746939139073,0.24432078,667.26,665.82,0.30038148]
[1746939139372,0.24432078,667.25,665.82,0.30038148]
[1746939139776,0.24432078,667.24,665.82,0.30038148]
[1746939140076,0.24432078,667.23,665.82,0.30038148]
[1746939140474,0.24432078,667.22,665.82,0.30038148]
[1746939140770,0.26112991,667.24,665.82,0.30038148]
[1746939141070,0.24430333,667.23,665.82,0.30038148]
[1746939141375,0.24430333,667.22,665.82,0.30038148]
[1746939141973,0.24430333,667.21,665.82,0.30038148]
[1746939142282,0.24430333,667.2,665.82,0.30038148]
[1746939142478,1.94388738,667.13,665.82,0.30038148]
[1746939142876,0.26112795,667.12,665.82,0.30038148]
[1746939143076,0.50543128,667.12,665.82,0.30038148]
[1746939143381,0.24430333,667.11,665.82,0.30038148]
[1746939143576,0.24430333,667.1,665.82,0.30038148]
[1746939143979,0.24430333,667.11,665.82,0.30038148]
[1746939144583,0.26112795,667.12,665.82,0.30038148]
[1746939144784,1.94388738,667.13,665.82,0.30038148]
[1746939144979,0.24427996,667.11,665.82,0.30038148]
[1746939145283,0.24427996,667.18,665.82,0.30038148]
[1746939145883,0.26112207,667.17,665.82,0.30038148]
[1746939146079,0.24427996,667.16,665.82,0.30038148]
[1746939148286,0.24427996,667.26,665.82,0.30038148]
[1746939148581,0.24427996,667.25,665.82,0.30038148]
[1746939148988,0.24427996,667.24,665.82,0.30038148]
[1746939149287,0.24427996,667.23,665.82,0.30038148]
[1746939149787,0.24427996,667.22,665.82,0.30038148]
[1746939150684,0.24427996,667.21,665.82,0.30038148]
[1746939151089,0.24427996,667.2,665.82,0.30038148]
[1746939151590,0.24427996,667.19,665.82,0.30038148]
[1746939151888,1.94388738,667.12,665.82,0.30038148]
[1746939152185,0.24427996,667.11,665.82,0.30038148]
[1746939152590,0.24427996,667.1,665.82,0.30038148]
[1746939152990,0.24427996,667.09,665.82,0.30038148]
[1746939153389,0.24427996,667.08,665.82,0.30038148]
[1746939153987,0.50543731,667.07,665.82,0.30038148]
[1746939154191,0.50543731,667.07,665.83,0.531]
[1746939154392,0.50543731,667.07,665.85,0.30036795]
[1746939154891,0.24427996,667.06,665.85,0.30036795]
[1746939155492,0.24427996,667.05,665.85,0.30036795]
[1746939155793,0.24427996,667.04,665.85,0.30036795]
[1746939156093,0.26115735,667.07,665.85,0.30036795]
[1746939156393,0.24434461,667.06,665.85,0.30036795]
[1746939156790,0.24434461,667.05,665.85,0.30036795]
[1746939156991,0.24434461,667.04,665.85,0.30036795]
[1746939157394,0.24434461,667.03,665.85,0.30036795]
[1746939157689,0.24434461,667.02,665.85,0.30036795]
[1746939157993,0.24434461,667.01,665.85,0.30036795]
[1746939158394,0.24434461,667.0,665.85,0.30036795]
[1746939158691,0.24434461,666.99,665.85,0.30036795]
[1746939159094,0.24434461,666.98,665.85,0.30036795]
[1746939159294,0.24434461,666.97,665.85,0.30036795]
[1746939159497,1.94388738,666.91,665.85,0.30036795]
[1746939159796,0.24434461,666.9,665.85,0.30036795]
[1746939160298,0.24434461,666.89,665.85,0.30036795]
[1746939160797,0.24434461,666.88,665.85,0.30036795]
[1746939161097,0.24434461,666.87,665.85,0.30036795]
[1746939161499,0.24434461,666.86,665.85,0.30036795]
[1746939161900,0.24434461,666.85,665.85,0.30036795]
[1746939162298,0.24434461,666.84,665.85,0.30036795]
[1746939162600,0.24434461,666.83,665.85,0.30036795]
[1746939163001,0.24434461,666.82,665.85,0.30036795]
[1746939163501,0.24434461,666.81,665.85,0.30036795]
[1746939163801,0.24434461,666.8,665.85,0.30036795]
[1746939164002,0.50556273,666.8,665.85,0.30036795]
[1746939164302,0.24434461,666.79,665.85,0.30036795]
[1746939164601,0.24434461,666.78,665.85,0.30036795]
[1746939165002,0.24434461,666.77,665.85,0.30036795]
[1746939165303,0.24434461,666.76,665.85,0.30036795]
[1746939165599,0.24434461,666.75,665.85,0.30036795]
[1746939165802,1.94388738,666.85,665.85,0.30036795]
[1746939166104,1.94388738,666.87,665.85,0.30036795]
[1746939166504,0.24439271,666.86,665.85,0.30036795]
[1746939166899,0.50560004,666.85,665.85,0.30036795]
[1746939167302,0.24439271,666.84,665.85,0.30036795]
[1746939167502,0.24439271,666.83,665.85,0.30036795]
[1746939167898,0.24439271,666.82,665.85,0.30036795]
[1746939168298,0.24439271,666.81,665.85,0.30036795]
[1746939168502,0.24439271,666.8,665.85,0.30036795]
[1746939168903,0.50562553,666.79,665.85,0.30036795]
[1746939169299,0.24439271,666.78,665.85,0.30036795]
[1746939170806,0.24439271,666.77,665.85,0.30036795]
[1746939171102,0.24439271,666.76,665.85,0.30036795]
[1746939171403,0.24439271,666.76,665.86,0.49]
[1746939171607,0.24439271,666.75,665.86,0.49]
[1746939171908,0.26119263,666.74,665.86,0.49]
[1746939172211,0.24439271,666.73,665.86,0.49]
[1746939172610,0.24439271,666.72,665.86,0.49]
[1746939172906,0.24439271,666.72,665.87,0.30035892]
[1746939173110,0.24439271,666.71,665.87,0.30035892]
[1746939173310,0.24439271,666.7,665.87,0.30035892]
[1746939173804,0.24439271,666.69,665.87,0.30035892]
[1746939174114,0.24439271,666.73,665.87,0.30035892]
[1746939174511,0.24439271,666.72,665.87,0.30035892]
[1746939174905,0.50558632,666.71,665.87,0.30035892]
[1746939175311,0.24439271,666.7,665.87,0.30035892]
[1746939175706,0.24439271,666.69,665.87,0.30035892]
[1746939176111,0.24439271,666.7,665.87,0.30035892]
[1746939178014,0.26118871,666.69,665.87,0.30035892]
[1746939178514,0.24439271,666.68,665.87,0.30035892]
[1746939181115,0.24439271,667.0,665.87,0.30035892]
[1746939181412,0.24439271,666.99,665.87,0.30035892]
[1746939181616,2.18828009,666.99,665.87,0.30035892]
[1746939181816,0.24439271,666.98,665.87,0.30035892]
[1746939182018,0.50558338,666.98,665.87,0.30035892]
[1746939182220,0.24439271,666.97,665.87,0.30035892]
[1746939182522,0.24439271,666.96,665.87,0.30035892]
[1746939182921,0.24439271,666.95,665.87,0.30035892]
[1746939183318,0.24439271,666.94,665.87,0.30035892]
[1746939183625,0.24439271,666.93,665.87,0.30035892]
[1746939184121,0.24439271,666.92,665.87,0.30035892]
[1746939184523,0.24439271,666.91,665.87,0.30035892]
[1746939184921,0.50558436,666.9,665.87,0.30035892]
[1746939185421,0.24439271,666.89,665.87,0.30035892]
[1746939185821,0.24439271,666.88,665.87,0.30035892]
[1746939186123,0.26119165,666.9,665.87,0.30035892]
[1746939186523,0.24439563,666.89,665.87,0.30035892]
[1746939187027,0.24439563,666.94,665.87,0.30035892]
[1746939187321,0.24439563,666.93,665.87,0.30035892]
[1746939187726,0.24439563,666.92,665.87,0.30035892]
[1746939187923,0.50576383,666.92,665.87,0.30035892]
[1746939188219,0.24439563,666.91,665.87,0.30035892]
[1746939188617,0.24439563,666.91,665.88,0.579]
[1746939188822,0.24439563,666.9,665.88,0.579]
[1746939189219,0.24439563,666.89,665.88,0.579]
[1746939189419,0.24439563,666.89,665.88,0.87935441]
[1746939189621,0.24439563,666.91,665.88,0.87935441]
[1746939189817,0.24439563,666.9,665.88,0.87935441]
[1746939190225,0.24439563,666.89,665.88,0.87935441]
[1746939190625,0.24439563,666.88,665.88,0.87935441]
[1746939190824,0.50558238,666.88,665.88,0.87935441]
[1746939191125,0.26118675,666.88,665.88,0.87935441]
[1746939191420,0.24439563,666.87,665.88,0.87935441]
[1746939194026,0.24439563,666.86,665.88,0.87935441]
[1746939194326,0.24439563,666.87,665.88,0.87935441]
[1746939195327,0.24439563,666.86,665.88,0.87935441]
[1746939195621,0.24439563,666.85,665.88,0.579]
[1746939196025,0.24439563,666.87,665.88,0.579]
[1746939196222,0.24439563,666.94,665.88,0.579]
[1746939196728,1.94388738,666.63,665.88,0.579]
[1746939197229,0.24439563,666.62,665.88,0.579]
[1746939199332,0.24439563,667.06,665.88,0.579]
[1746939199629,0.24439563,667.05,665.88,0.579]
[1746939199826,0.50553534,667.05,665.88,0.579]
[1746939200026,0.24439563,667.04,665.88,0.579]
[1746939200329,0.24439563,667.03,665.88,0.579]
[1746939200731,0.24439563,667.02,665.88,0.579]
[1746939201130,0.24439563,667.01,665.88,0.579]
[1746939201531,0.24439563,667.0,665.88,0.579]
[1746939201930,0.24439563,666.99,665.88,0.579]
[1746939202231,0.24439563,666.98,665.88,0.579]
[1746939202934,0.24439563,666.97,665.88,0.579]
[1746939203132,0.50553142,666.97,665.88,0.579]
[1746939203334,0.24439563,666.96,665.88,0.579]
[1746939203629,0.24439563,666.95,665.88,0.579]
[1746939204033,0.24439563,666.94,665.88,0.579]
[1746939204535,0.24439563,666.93,665.88,0.579]
[1746939204936,0.24439563,666.92,665.88,0.579]
[1746939205336,0.24439563,666.91,665.88,0.579]
[1746939205733,0.24439563,666.9,665.88,0.579]
[1746939206236,0.24439563,666.92,665.88,0.579]
[1746939207937,0.26113383,666.91,665.88,0.579]
[1746939208338,0.24439563,666.9,665.88,0.579]
[1746939214041,0.26113089,666.89,665.88,0.579]
[1746939214238,0.24439563,666.88,665.88,0.579]
[1746939214545,0.24439563,666.88,665.71,0.26113089]
[1746939214743,0.24439563,666.88,665.72,1.15718585]
[1746939215138,0.24439563,666.88,665.73,1.15718585]
[1746939216038,0.24439563,666.88,665.74,1.15718585]
[1746939216543,0.24439563,666.88,665.75,1.15718585]
[1746939216945,0.26114559,666.87,665.76,1.15718585]
[1746939217140,0.24439563,666.86,665.76,1.15718585]
[1746939217743,0.24439563,666.86,665.77,1.62718585]
[1746939218147,0.24439563,666.86,665.78,1.15718585]
[1746939218443,0.24439563,666.86,665.77,0.47]
[1746939218845,0.24439563,666.86,665.78,1.15606545]
[1746939219350,0.24439563,666.86,665.77,0.47]
[1746939219950,0.50555494,666.85,665.77,0.47]
[1746939220351,0.24439563,666.84,665.77,0.47]
[1746939222955,0.26117401,666.83,665.77,0.47]
[1746939223354,0.24439563,666.82,665.77,0.47]
[1746939224050,0.24439563,666.82,665.78,1.15551308]
[1746939224358,0.26117401,666.83,665.78,1.15551308]
[1746939224551,0.26117401,666.83,665.79,1.15551308]
[1746939224754,0.24431345,666.82,665.79,1.15551308]
[1746939225054,0.24431345,666.82,665.8,1.15551308]
[1746939225356,0.24431345,666.82,665.77,0.47]
[1746939225856,0.24431345,666.82,665.78,1.15571299]
[1746939226056,0.26128872,666.81,665.78,1.15571299]
[1746939226257,0.26128872,666.81,665.79,1.15571299]
[1746939226459,0.24431345,666.8,665.79,1.15571299]
[1746939226957,0.24431345,666.8,665.8,1.15571299]
[1746939227654,0.24431345,666.8,665.77,0.47]
[1746939228154,0.24431345,666.8,665.78,1.15566118]
[1746939228760,0.24431345,666.8,665.79,1.15566118]
[1746939228960,0.24431345,667.05,665.79,1.15566118]
[1746939229161,0.26115833,666.79,665.79,1.15566118]
[1746939229363,0.24431345,667.05,665.8,1.15566118]
[1746939229762,0.24431345,667.04,665.8,1.15566118]
[1746939229961,0.24431345,667.04,665.71,0.26115833]
[1746939230257,0.50545806,667.03,665.71,0.26115833]
[1746939230462,2.44934544,667.03,665.72,1.15575056]
[1746939230760,2.44934544,667.03,665.73,1.15575056]
[1746939230956,0.24431345,667.02,665.73,1.15575056]
[1746939231260,0.24431345,667.01,665.74,1.15575056]
[1746939231461,0.24431345,667.0,665.75,1.15575056]
[1746939231760,0.24431345,666.99,665.76,1.15575056]
[1746939231960,0.5054659,666.99,665.76,1.15575056]
[1746939232163,1.94388738,666.94,665.76,1.15575056]
[1746939232363,0.24431345,666.93,665.77,1.15575056]
[1746939232861,0.24431345,666.92,665.77,1.15575056]
[1746939233063,0.24431345,666.92,665.78,1.15575056]
[1746939233357,1.94388738,666.94,665.75,0.687]
[1746939233358,0.24431345,666.91,665.79,1.15575056]
[1746939233561,1.94388738,666.8,665.79,1.15575056]
[1746939233760,1.94388738,666.8,665.8,1.15575056]
[1746939233962,0.24431345,666.79,665.8,1.15575056]
[1746939234161,0.24431345,666.79,665.75,0.687]
[1746939234364,0.24431345,666.78,665.75,0.687]
[1746939234559,0.24431345,666.79,665.76,1.15542177]
[1746939234964,0.24431345,666.78,665.77,1.15542177]
[1746939235164,0.24431345,666.77,665.78,1.15542177]
[1746939235564,0.24431345,666.76,665.79,1.15542177]
[1746939235866,1.94388738,666.7,665.79,1.15542177]
[1746939236066,1.94388738,666.7,665.75,0.687]
[1746939236266,0.24431345,666.69,665.75,0.687]
[1746939236567,0.24431345,666.69,665.76,1.15545257]
[1746939236966,0.24431345,666.69,665.77,1.15545257]
[1746939237667,0.24431345,666.69,665.78,1.15545257]
[1746939238066,0.24431345,666.69,665.79,1.15545257]
[1746939238464,0.24431345,666.69,665.8,1.15545257]
[1746939239265,0.24431345,666.69,665.81,1.15545257]
[1746939239563,0.24431345,666.69,665.82,1.15545257]
[1746939239963,0.24431345,666.69,665.83,1.15545257]
[1746939240169,0.24431345,666.69,665.84,1.15545257]
[1746939240670,1.94388738,667.14,665.84,1.15545257]
[1746939240869,1.94388738,667.14,665.85,1.15545257]
[1746939241065,0.24426936,667.13,665.85,1.15545257]
[1746939241271,0.24426936,667.13,665.86,1.15545257]
[1746939241564,0.24426936,667.12,665.87,1.15545257]
[1746939241866,0.24426936,667.11,665.87,1.15545257]
[1746939242170,0.24426936,667.1,665.88,1.15545257]
[1746939242471,0.24426936,667.1,665.89,1.15545257]
[1746939242668,0.24426936,667.09,665.89,1.15545257]
[1746939242871,0.24426936,667.1,665.9,1.15545257]
[1746939243171,0.24426936,667.1,665.78,0.26116029]
[1746939243373,0.24426936,667.09,665.78,0.26116029]
[1746939243674,0.24426936,667.08,665.78,0.26116029]
[1746939243873,0.24426936,667.08,665.79,1.15498435]
[1746939244070,0.24426936,667.07,665.79,1.15498435]
[1746939244269,0.24426936,667.07,665.8,1.15498435]
[1746939244471,0.24426936,667.1,665.8,1.15498435]
[1746939244672,0.24426936,667.1,665.81,1.15498435]
[1746939244973,0.24426936,667.1,665.82,1.15498435]
[1746939245275,0.24426936,667.09,665.82,1.15498435]
[1746939245575,0.24426936,667.09,665.83,1.15498435]
[1746939245772,0.24426936,667.08,665.84,1.15498435]
[1746939246174,0.24426936,667.07,665.84,1.15498435]
[1746939246368,0.24426936,667.07,665.85,1.15498435]
[1746939246572,0.24426936,667.1,665.85,1.66498435]
[1746939246773,0.24426936,667.1,665.86,1.15498435]
[1746939246973,0.26111326,667.09,665.86,1.15498435]
[1746939247168,0.50538262,667.09,665.86,1.15498435]
[1746939247373,0.50538262,667.09,665.87,1.15498435]
[1746939247572,0.24426936,667.08,665.87,1.15498435]
[1746939247974,0.24426936,667.07,665.88,1.15498435]
[1746939248274,0.26111326,667.09,665.88,1.15498435]
[1746939248275,0.24426936,667.06,665.88,1.15498435]
[1746939248471,0.24426936,667.06,665.89,1.15498435]
[1746939248771,0.24426936,667.05,665.9,1.15498435]
[1746939249276,0.24426936,667.04,665.91,1.15498435]
[1746939249475,0.24426936,667.03,665.91,1.15498435]
[1746939249776,0.24426936,667.03,665.92,1.15498435]
[1746939249970,0.5053836,667.02,665.85,0.51]
[1746939250372,0.24426936,667.01,665.85,0.51]
[1746939250577,0.24426936,667.01,665.86,1.15596087]
[1746939250873,0.24426936,667.0,665.87,1.15596087]
[1746939251078,1.94388738,666.95,665.87,1.15596087]
[1746939251271,1.94388738,666.95,665.88,1.15596087]
[1746939251676,0.24426936,666.94,665.88,1.15596087]
[1746939251875,0.24426936,666.94,665.89,1.15596087]
[1746939252176,1.94388738,666.95,665.89,1.15596087]
[1746939252376,0.24427212,666.93,665.89,1.15596087]
[1746939252577,0.24427212,666.92,665.9,1.15596087]
[1746939252878,0.24427212,666.91,665.9,1.15596087]
[1746939253072,0.24427212,666.91,665.91,1.15596087]
[1746939253278,0.24427212,666.91,665.92,1.15596087]
[1746939253477,0.24427212,666.9,665.92,1.15596087]
[1746939253778,0.24427212,666.89,665.93,1.15596087]
[1746939254178,0.24427212,666.88,665.93,1.15596087]
[1746939254378,0.24427212,666.88,665.94,1.15596087]
[1746939254678,0.24427212,666.87,665.94,1.15596087]
[1746939254878,0.24427212,666.87,665.85,0.51]
[1746939255179,0.24427212,666.86,665.86,1.15680126]
[1746939255575,0.24427212,666.94,665.86,1.15680126]
[1746939255772,0.24427212,666.94,665.87,1.15680126]
[1746939256079,1.94388738,666.92,665.88,1.15680126]
[1746939256277,0.24427212,666.91,665.88,1.15680126]
[1746939256478,0.24427212,666.91,665.89,1.15680126]
[1746939256778,0.24427212,666.9,665.89,1.15680126]
[1746939256975,0.24427212,666.9,665.9,1.15680126]
[1746939257174,0.50541771,666.9,665.9,1.15680126]
[1746939257377,0.26114559,666.9,665.9,1.15680126]
[1746939257677,0.24427212,666.89,665.91,1.15680126]
[1746939257978,0.24427212,666.89,665.92,1.15680126]
[1746939258479,0.24427212,666.89,665.93,1.15680126]
[1746939258878,0.24427212,666.89,665.94,1.15680126]
[1746939259078,0.26111522,666.88,665.94,1.15680126]
[1746939259277,0.26111522,666.88,665.85,0.51]
[1746939259479,0.24427212,666.87,665.85,0.51]
[1746939259781,0.24427212,666.87,665.86,1.15712353]
[1746939260282,0.24427212,666.87,665.87,1.15712353]
[1746939260681,0.24427212,666.87,665.88,1.15712353]
[1746939261485,0.24427212,666.87,665.89,1.15712353]
[1746939261781,0.24427212,666.87,665.85,0.51]
[1746939261986,0.26112207,666.86,665.85,0.51]
[1746939262186,0.26112207,666.86,665.86,1.15750695]
[1746939262487,0.24427212,666.85,665.87,1.15750695]
[1746939263086,0.24427212,666.85,665.85,0.51]
[1746939263486,0.24427212,666.85,665.86,1.15920827]
[1746939263986,0.24427212,666.85,665.87,1.15920827]
[1746939264283,0.24427212,666.85,665.88,1.15920827]
[1746939264986,0.26113089,666.84,665.85,0.51]
[1746939265687,0.24427212,666.83,665.85,0.51]
[1746939266287,0.24427212,666.82,665.85,0.51]
[1746939266583,0.24427212,666.81,665.85,0.51]
[1746939266886,0.24427212,666.8,665.85,0.51]
[1746939267386,0.26113089,666.84,665.85,0.51]
[1746939267582,1.94388738,666.61,665.85,0.51]
[1746939267984,0.24435548,666.6,665.85,0.51]
[1746939269088,0.26135741,666.59,665.85,0.51]
[1746939269690,0.24435548,666.58,665.85,0.51]
[1746939270583,0.24435548,666.58,665.56,0.26135741]
[1746939270889,0.24435548,666.58,665.57,1.1603509]
[1746939271085,0.24435548,666.58,665.58,1.1603509]
[1746939271384,0.24435548,666.7,665.58,1.1603509]
[1746939271582,0.24435548,666.7,665.59,1.1603509]
[1746939272085,0.26124459,666.69,665.6,1.1603509]
[1746939272291,0.24435548,666.68,665.6,1.1603509]
[1746939272589,0.24435548,666.68,665.61,1.1603509]
[1746939272783,0.24435548,666.68,665.62,1.1603509]
[1746939273189,0.24435548,666.68,665.63,1.1603509]
[1746939273491,0.24435548,666.68,665.64,0.697]
[1746939273789,0.24435548,666.68,665.65,1.1603509]
[1746939273991,0.24435548,666.68,665.66,1.1603509]
[1746939274191,0.24435548,666.87,665.66,1.1603509]
[1746939274486,0.24435548,666.86,665.67,1.1603509]
[1746939274787,1.94388738,667.0,665.68,1.1603509]
[1746939275086,0.26120831,666.85,665.68,1.1603509]
[1746939275390,0.24436754,666.84,665.69,1.1603509]
[1746939275692,0.24436754,666.83,665.7,1.1603509]
[1746939276193,0.24436754,666.82,665.7,1.1603509]
[1746939276494,0.24436754,666.81,665.64,0.697]
[1746939276794,0.24436754,666.81,665.65,1.15974461]
[1746939276991,0.26121125,666.8,665.65,1.15974461]
[1746939277192,0.24436754,666.79,665.65,1.15974461]
[1746939277492,0.24436754,666.79,665.66,1.15974461]
[1746939277892,0.24436754,666.79,665.67,1.15974461]
[1746939278393,0.24436754,666.79,665.68,1.15974461]
[1746939278593,0.24436754,666.78,665.68,1.15974461]
[1746939278795,0.24436754,666.78,665.69,1.15932937]
[1746939279091,0.24436754,666.77,665.69,1.15932937]
[1746939279294,0.24436754,666.79,665.69,1.15932937]
[1746939279490,0.24436754,666.79,665.64,0.697]
[1746939279895,0.24436754,666.79,665.65,1.15923958]
[1746939280095,0.26118087,666.78,665.65,1.15923958]
[1746939280295,0.26118087,666.78,665.66,1.15923958]
[1746939280496,0.24436754,666.77,665.66,1.15923958]
[1746939280697,0.24436754,666.77,665.67,1.15923958]
[1746939281298,0.24436754,666.77,665.68,1.15923958]
[1746939281898,0.24436754,666.77,665.69,1.15923958]
[1746939282198,0.24436754,666.77,665.7,1.15923958]
[1746939282894,0.24436754,666.77,665.71,1.15923958]
[1746939283094,0.24436754,667.07,665.71,1.15923958]
[1746939283395,1.94388738,667.08,665.72,1.15923958]
[1746939283802,0.24434807,667.07,665.72,1.15923958]
[1746939283997,0.50552012,667.07,665.73,1.15923958]
[1746939284197,0.24434807,667.06,665.73,1.15923958]
[1746939284502,0.24434807,667.05,665.64,0.697]
[1746939284904,0.26117205,667.07,665.64,0.697]
[1746939284905,0.24434807,667.04,665.65,1.15894212]
[1746939285197,0.24434807,667.03,665.65,1.15894212]
[1746939285500,0.24434807,667.02,665.66,1.15894212]
[1746939285894,0.24434807,667.01,665.66,1.15894212]
[1746939286297,0.24434807,667.0,665.67,1.15894212]
[1746939286601,0.24434807,667.0,665.68,1.15894212]
[1746939286802,0.24434807,666.99,665.68,1.15894212]
[1746939287002,0.50552012,666.99,665.69,1.15894212]
[1746939287200,0.24434807,666.98,665.7,1.15894212]
[1746939287397,0.24434807,666.97,665.7,1.15894212]
[1746939287703,0.24434807,666.96,665.71,1.15894212]
[1746939288203,0.24434807,666.95,665.71,1.15894212]
[1746939288503,0.24434807,666.94,665.72,1.15894212]
[1746939288905,1.94388738,667.12,665.64,0.697]
[1746939289206,0.24434354,667.11,665.65,1.15880929]
[1746939289601,0.24434354,667.1,665.66,1.15880929]
[1746939289907,0.24434354,667.09,665.66,1.15880929]
[1746939290108,0.24434354,667.09,665.67,1.15880929]
[1746939290306,0.26117499,667.1,665.67,1.15880929]
[1746939290307,1.94388738,667.01,665.67,1.15880929]
[1746939290602,1.94388738,667.01,665.68,1.15880929]
[1746939290603,0.24434354,667.0,665.68,1.15880929]
[1746939291006,0.24434354,666.99,665.69,1.15880929]
[1746939291306,0.24434354,666.98,665.69,1.15880929]
[1746939291606,0.24434354,666.98,665.7,1.15880929]
[1746939291807,0.24434354,666.97,665.7,1.15880929]
[1746939292001,0.26117499,666.97,665.71,1.15880929]
[1746939292205,0.24434336,666.96,665.71,1.15880929]
[1746939292508,0.24434336,666.96,665.72,1.15880929]
[1746939292701,0.24434336,666.95,665.72,1.15880929]
[1746939293003,0.24434336,666.94,665.67,0.26117499]
[1746939293408,0.24434336,666.93,665.67,0.26117499]
[1746939293605,0.24434336,666.93,665.68,1.15866301]
[1746939293803,0.24434336,666.92,665.68,1.15866301]
[1746939294003,0.24434336,666.92,665.69,1.15866301]
[1746939294203,0.24434336,666.91,665.69,1.15866301]
[1746939294403,0.24434336,666.9,665.69,1.15866301]
[1746939294607,0.24434336,666.9,665.7,1.15866301]
[1746939294808,0.24434336,666.89,665.71,1.15866301]
[1746939295107,0.24434336,666.89,665.64,0.697]
[1746939295306,0.50552129,666.88,665.68,0.26117793]
[1746939295504,0.24434336,666.87,665.68,0.26117793]
[1746939295706,0.24434336,666.87,665.69,1.15862862]
[1746939295903,0.24434336,666.86,665.69,1.15862862]
[1746939296104,0.24434336,666.86,665.7,1.15862862]
[1746939296905,0.24434336,666.86,665.68,0.26117793]
[1746939296906,0.24434336,666.86,665.71,1.15862862]
[1746939297305,0.24434336,666.85,665.71,1.15862862]
[1746939297510,0.24434336,666.85,665.68,0.26117793]
[1746939297709,0.24434336,666.84,665.64,0.697]
[1746939297907,0.24434336,666.84,665.65,1.15864402]
[1746939298108,0.24434336,666.83,665.65,1.15864402]
[1746939298409,0.24434336,666.82,665.65,1.15864402]
[1746939298611,0.24434336,666.82,665.66,1.15864402]
[1746939298911,0.24434336,666.81,665.66,1.15864402]
[1746939299211,0.50553403,666.81,665.67,0.26119067]
[1746939299413,0.24434336,666.8,665.69,0.30044014]
[1746939299611,0.26119067,666.81,665.69,0.30044014]
[1746939299806,0.24434576,666.8,665.7,1.15864402]
[1746939300311,0.24434576,666.8,665.69,0.30044014]
[1746939300912,0.24434576,666.79,665.69,0.30044014]
[1746939301211,0.24434576,666.85,665.7,1.15909658]
[1746939301406,0.24434576,666.84,665.7,1.15909658]
[1746939301612,0.24434576,666.84,665.69,0.30044014]
[1746939301911,0.24434576,666.83,665.69,0.30044014]
[1746939302112,1.94388738,666.81,665.69,0.30044014]
[1746939302308,0.24434576,666.8,665.69,0.30044014]
[1746939302611,0.24434576,666.79,665.69,0.30044014]
[1746939302911,0.24434576,666.78,665.69,0.30044014]
[1746939303112,0.24434576,666.78,665.7,1.15917763]
[1746939303314,0.24434576,666.77,665.7,1.15917763]
[1746939303513,0.24434576,666.76,665.7,1.15917763]
[1746939303715,0.24434576,666.76,665.69,0.30044014]
[1746939303913,0.24434576,666.75,665.69,0.30044014]
[1746939304310,1.94388738,666.68,665.69,0.30044014]
[1746939304510,1.94388738,666.68,665.7,1.1601328]
[1746939305215,1.94388738,666.68,665.71,1.8821328]
[1746939305414,0.24434576,666.67,665.71,1.8821328]
[1746939305614,0.24434576,666.67,665.72,1.1601328]
[1746939305811,0.24434576,666.66,665.72,1.1601328]
[1746939306116,1.94388738,666.63,665.72,1.1601328]
[1746939306314,1.94388738,666.63,665.73,1.1601328]
[1746939306517,0.24434576,666.62,665.73,1.1601328]
[1746939306719,0.24434576,666.62,665.74,1.1601328]
[1746939307218,0.24434576,666.62,665.71,0.722]
[1746939307518,0.24434576,666.62,665.72,1.16062577]
[1746939308218,1.94388738,666.63,665.73,1.16062577]
[1746939308410,1.94388738,666.63,665.74,1.16062577]
[1746939308612,0.24434749,666.62,665.74,1.16062577]
[1746939309013,0.24434749,666.61,665.71,0.722]
[1746939309320,0.24434749,666.6,665.72,1.16112411]
[1746939309613,0.24434749,666.59,665.72,1.16112411]
[1746939309814,0.24434749,666.59,665.73,1.16112411]
[1746939310019,0.24434749,666.58,665.73,1.16112411]
[1746939310318,0.24434749,666.63,665.74,1.16112411]
[1746939310714,0.24434749,666.62,665.74,1.16112411]
[1746939311019,0.24434749,666.61,665.74,1.16112411]
[1746939311618,0.24434749,666.63,665.74,1.16112411]
[1746939311819,1.94388738,666.55,665.74,1.16112411]
[1746939312419,0.24434749,666.54,665.74,1.16112411]
[1746939312919,0.24434749,666.54,665.75,1.16112411]
[1746939313416,0.24434749,666.54,665.76,1.16112411]
[1746939314022,0.24434749,666.62,665.77,1.46152815]
[1746939314322,1.94388738,666.63,665.77,1.46152815]
[1746939314517,1.94388738,666.63,665.78,1.16112411]
[1746939314722,0.2443342,666.62,665.78,1.16112411]
[1746939315022,1.94388738,666.63,665.79,1.16112411]
[1746939315317,0.24433094,666.62,665.8,1.16112411]
[1746939315722,0.24433094,666.62,665.82,0.30038148]
[1746939317024,0.24433094,666.64,665.82,0.30038148]
[1746939318419,0.24433094,666.71,665.82,0.30038148]
[1746939322029,0.26121518,666.7,665.82,0.30038148]